bitfinex-derivatives/quotes_SOLF0:USTF0_20240824
["timestamp","ask_amount","ask_price","bid_price","bid_amount"]
[1724498957485,7.81410946,158.03,158.0,1.26519813]
[1724498957788,3.1628,158.02,157.99,3.20924158]
[1724498958421,7.77,158.01,157.99,0.04594158]
[1724498958589,7.77,158.0,157.99,0.04594158]
[1724498959587,7.77,158.0,157.99,0.02594158]
[1724498959991,10.933,158.01,157.99,0.02594158]
[1724498961096,7.77,158.01,157.99,0.02594158]
[1724498961492,0.04410946,158.03,157.99,0.02594158]
[1724498961908,7.81410946,158.03,157.99,0.02594158]
[1724498962094,3.1628,158.02,157.99,0.02594158]
[1724498963388,7.77,158.01,157.99,0.02594158]
[1724498963595,10.933,158.01,157.99,0.02594158]
[1724498964689,7.81410946,158.03,157.99,3.18924158]
[1724498965324,10.97680946,158.03,158.0,3.1631]
[1724498967196,3.20680946,158.03,158.0,3.1631]
[1724498970096,7.77,158.02,158.0,3.1631]
[1724498970299,10.9327,158.02,157.99,3.18914158]
[1724498970504,10.9327,158.02,157.99,0.02594158]
[1724498970695,7.77,158.01,157.99,0.02594158]
[1724498970895,10.9329,158.01,157.99,0.02594158]
[1724498978109,10.9328,158.02,157.99,3.18924158]
[1724498979005,0.04410946,158.03,157.99,0.02594158]
[1724498979499,0.04410946,158.03,158.01,3.1628]
[1724498981408,3.20660946,158.03,158.01,3.1628]
[1724498982007,0.04410946,158.03,158.02,3.1627]
[1724498982209,0.04410946,158.03,157.99,7.79594158]
[1724498982406,0.04410946,158.03,157.99,0.02594158]
[1724498982906,0.04410946,158.03,158.0,1.2650542]
[1724498983103,0.04410946,158.03,158.01,3.1628]
[1724498983604,0.04410946,158.03,158.02,10.9327]
[1724498983912,7.77,158.09,158.02,12.09053559]
[1724498984102,7.77,158.09,158.02,7.77]
[1724498984505,3.1617,158.08,158.04,3.1623]
[1724498984706,7.77,158.07,158.04,0.04169148]
[1724498984907,0.0453471,158.08,158.04,0.04169148]
[1724498984908,7.77,158.06,158.04,0.04169148]
[1724498985102,3.1621,158.05,158.04,0.04169148]
[1724498990007,10.9321,158.05,158.04,0.04169148]
[1724498991909,10.99982532,158.05,157.95,1.288]
[1724498992105,7.77,157.99,157.95,1.288]
[1724498992921,3.1635,157.98,157.96,3.1639]
[1724498994315,10.97945257,157.99,157.96,3.1639]
[1724498997221,3.1635,157.98,157.95,3.20907721]
[1724498998911,3.1635,157.98,157.95,0.04507721]
[1724498999116,10.9335,157.98,157.95,0.04507721]
[1724498999629,10.9335,157.98,157.95,3.20917721]
[1724499000412,3.1637,157.97,157.95,0.04507721]
[1724499000619,7.77,157.96,157.95,0.04507721]
[1724499001120,10.9339,157.96,157.95,0.04507721]
[1724499003817,7.77,157.96,157.73,31.40471924]
[1724499004036,7.77,157.92,157.89,3.1652]
[1724499004716,10.9803622,157.92,157.89,3.21037667]
[1724499005118,7.8155622,157.92,157.91,3.1649]
[1724499005418,0.0455622,157.92,157.89,7.81517667]
[1724499006120,0.0455622,157.92,157.9,3.165]
[1724499006913,3.1651,157.9,157.89,0.04517667]
[1724499011863,0.0455622,157.92,157.89,0.04517667]
[1724499012323,0.0455622,157.92,157.89,3.21037667]
[1724499012528,0.0455622,157.92,157.89,0.04517667]
[1724499013027,0.0455622,157.92,157.9,3.165]
[1724499013425,0.0455622,157.92,157.89,0.04517667]
[1724499013728,0.0455622,157.92,157.89,3.21037667]
[1724499014132,0.0455622,157.92,157.9,3.1651]
[1724499015031,3.2102622,157.92,157.89,3.21047667]
[1724499016928,0.0455622,157.92,157.9,3.165]
[1724499018526,0.0455622,157.92,157.89,0.04517667]
[1724499018827,0.0455622,157.92,157.9,7.77]
[1724499019021,0.0455622,157.92,157.91,3.1649]
[1724499019929,0.0455622,157.92,157.9,3.1651]
[1724499020123,0.0455622,157.92,157.89,0.04517667]
[1724499022426,0.0455622,157.92,157.9,3.1651]
[1724499023528,0.0455622,157.92,157.91,3.1649]
[1724499024422,3.165,157.91,157.89,0.04517667]
[1724499024630,0.0455622,157.92,157.89,0.04517667]
[1724499024928,0.0455622,157.92,157.89,7.81517667]
[1724499025124,0.0455622,157.92,157.91,3.1649]
[1724499025326,2.518,158.03,157.91,6.24824303]
[1724499025526,7.77,158.0,157.94,7.77]
[1724499026132,3.1634,157.99,157.96,3.1638]
[1724499026335,3.21182611,157.99,157.96,3.20640314]
[1724499027029,0.04842611,157.99,157.97,3.1637]
[1724499028127,3.1635,157.98,157.96,0.04260314]
[1724499028324,0.04842611,157.99,157.96,0.04260314]
[1724499028728,3.21182611,157.99,157.96,0.04260314]
[1724499030037,0.04842611,157.99,157.96,0.04260314]
[1724499030430,0.04842611,157.99,157.98,3.1635]
[1724499031240,7.77,158.04,158.01,3.1629]
[1724499031429,7.77,158.05,157.98,7.77]
[1724499031635,10.9322,158.05,158.01,3.1628]
[1724499032235,10.97715295,158.05,158.01,3.21011305]
[1724499032437,3.20715295,158.05,158.02,3.1627]
[1724499035135,3.20715295,158.05,158.01,3.21011305]
[1724499036040,3.1623,158.04,158.01,3.21011305]
[1724499038543,3.1626,158.03,158.01,0.04731305]
[1724499039745,3.1627,158.02,158.01,0.04731305]
[1724499040942,22.5927,158.02,158.01,0.04731305]
[1724499041142,3.1633,158.0,157.96,3.1638]
[1724499041743,19.43,158.02,157.96,3.1638]
[1724499041944,3.1633,157.99,157.96,3.1638]
[1724499042149,3.20523016,157.99,157.96,3.2109723]
[1724499042745,3.20523016,157.99,157.96,0.0471723]
[1724499043446,3.20523016,157.99,157.96,3.2110723]
[1724499047149,0.04193016,157.99,157.96,3.2110723]
[1724499047747,3.20523016,157.99,157.96,3.2110723]
[1724499051358,0.04193016,157.99,157.97,3.1637]
[1724499051750,0.04193016,157.99,157.96,0.0471723]
[1724499052190,0.04193016,157.99,157.98,3.1635]
[1724499052960,0.04193016,157.99,157.97,3.1636]
[1724499053160,0.04193016,157.99,157.96,0.0471723]
[1724499054459,3.1635,157.98,157.96,0.0471723]
[1724499055060,3.20533016,157.99,157.96,3.2110723]
[1724499058060,0.04193016,157.99,157.97,3.1637]
[1724499060166,3.20523016,157.99,157.96,3.2109723]
[1724499060772,3.20523016,157.99,157.97,3.1637]
[1724499061169,3.20523016,157.99,157.96,0.0471723]
[1724499062060,3.20523016,157.99,157.96,3.2109723]
[1724499062864,0.04193016,157.99,157.97,3.1637]
[1724499063864,0.04193016,157.99,157.96,0.0471723]
[1724499063865,0.04193016,157.99,157.98,3.1635]
[1724499065267,0.04193016,157.99,157.98,4.42866124]
[1724499065468,67.0330159,158.1,157.98,7.78]
[1724499065666,7.78,158.06,157.99,1.26510521]
[1724499065863,7.78,158.06,157.98,7.78]
[1724499066069,3.1624,158.04,158.01,3.1629]
[1724499066480,3.20706345,158.04,158.01,3.20368579]
[1724499067368,10.98706345,158.04,158.01,3.20368579]
[1724499067574,0.04466345,158.04,158.02,3.1627]
[1724499067771,0.04466345,158.04,158.01,0.04078579]
[1724499068776,0.04466345,158.04,158.01,2.58808579]
[1724499069172,0.04466345,158.04,158.03,3.1625]
[1724499071371,7.78,158.07,158.06,3.1619]
[1724499071574,7.78,158.08,158.02,7.78]
[1724499072480,7.78,158.08,158.03,0.04473345]
[1724499072481,0.04180931,158.07,158.03,0.04473345]
[1724499072876,0.04180931,158.07,158.04,3.1622]
[1724499073294,7.78,158.06,158.03,0.04473345]
[1724499073579,7.78,158.06,158.03,3.20713345]
[1724499074779,7.78,158.04,158.03,0.04473345]
[1724499076276,3.1622,158.05,158.03,0.04473345]
[1724499076477,7.78,158.04,158.03,0.04473345]
[1724499076879,10.9423,158.04,158.03,0.04473345]
[1724499086790,3.1623,158.04,158.03,0.04473345]
[1724499087083,10.9423,158.04,158.03,0.04473345]
[1724499090888,0.04180931,158.07,158.03,0.04473345]
[1724499091087,7.78,158.04,158.03,0.04473345]
[1724499092289,10.9423,158.04,158.03,0.04473345]
[1724499097793,3.1623,158.04,158.03,0.04473345]
[1724499097984,10.9423,158.04,158.03,0.04473345]
[1724499098294,0.04180931,158.07,158.03,10.8807434]
[1724499098589,0.04180931,158.07,158.04,4.32099926]
[1724499098893,0.04180931,158.07,158.05,1.26498931]
[1724499099094,3.20350931,158.07,158.03,0.04473345]
[1724499099391,0.04180931,158.07,158.04,4.32012182]
[1724499099587,0.04180931,158.07,158.03,0.04473345]
[1724499099791,0.04180931,158.07,158.04,4.32035997]
[1724499100003,0.04180931,158.07,158.03,3.20723345]
[1724499100289,0.04180931,158.07,158.04,1.26485285]
[1724499100497,0.04180931,158.07,158.03,3.20723345]
[1724499100693,0.04180931,158.07,158.04,4.32028857]
[1724499100899,0.04180931,158.07,158.03,0.04473345]
[1724499101189,0.04180931,158.07,158.04,4.32024265]
[1724499101395,0.04180931,158.07,158.03,0.04473345]
[1724499101595,0.04180931,158.07,158.04,4.32030534]
[1724499101887,0.04180931,158.07,158.03,0.04473345]
[1724499101888,7.82180931,158.07,158.03,0.04473345]
[1724499103490,7.82180931,158.07,158.04,1.26485006]
[1724499103790,0.04180931,158.07,158.04,3.1623]
[1724499104094,0.04180931,158.07,158.05,1.26480072]
[1724499104295,0.04180931,158.07,158.04,11.578]
[1724499104593,6.328,158.27,158.04,11.578]
[1724499104594,3.9919,158.2,158.06,31.12]
[1724499104792,6.3146,158.3,158.13,7.78]
[1724499104991,6.3146,158.3,158.15,7.78]
[1724499104992,3.1593,158.2,158.15,7.78]
[1724499105387,0.04481359,158.19,158.16,0.04362907]
[1724499106109,3.20411359,158.19,158.16,0.04362907]
[1724499107192,0.04481359,158.19,158.16,0.04362907]
[1724499110293,3.20421359,158.19,158.16,0.04362907]
[1724499110492,0.04481359,158.19,158.16,0.04362907]
[1724499110694,19.46481359,158.19,158.16,0.04362907]
[1724499110892,3.1597,158.17,158.16,0.04362907]
[1724499114201,0.04481359,158.19,158.09,1.218]
[1724499114395,19.42,158.19,158.09,23.87255011]
[1724499114591,3.1602,158.15,158.11,3.1608]
[1724499115298,3.20248703,158.15,158.11,3.20939809]
[1724499115696,3.1604,158.14,158.11,0.04859809]
[1724499116099,0.04228703,158.15,158.11,0.04859809]
[1724499116900,0.04228703,158.15,158.12,19.42]
[1724499117197,0.04228703,158.15,158.14,3.1603]
[1724499117800,0.04228703,158.15,158.14,22.5803]
[1724499118397,2.5176,158.27,158.14,19.42]
[1724499118597,19.42,158.26,158.16,19.42]
[1724499118996,3.1588,158.22,158.17,3.1595]
[1724499119207,19.42,158.26,158.16,22.56409458]
[1724499119391,19.42,158.26,158.19,0.04346716]
[1724499119599,0.04498901,158.23,158.19,0.04346716]
[1724499120000,3.1587,158.22,158.19,0.04346716]
[1724499120499,0.04498901,158.23,158.19,0.04346716]
[1724499121097,3.1588,158.22,158.19,0.04346716]
[1724499121498,0.04498901,158.23,158.19,0.04346716]
[1724499121907,3.1589,158.22,158.19,0.04346716]
[1724499122404,0.04498901,158.23,158.19,0.04346716]
[1724499122600,3.20348901,158.23,158.19,3.20276716]
[1724499123501,1.3309,158.33,158.21,19.42]
[1724499123703,20.7509,158.33,158.23,19.42]
[1724499124103,48.25140462,158.34,158.23,19.42]
[1724499124297,67.67140462,158.34,158.25,19.42]
[1724499124527,67.67140462,158.34,158.27,3.1576]
[1724499124705,0.04276076,158.31,158.28,0.04854373]
[1724499124904,1.3069,158.43,158.29,19.42]
[1724499125108,1.3069,158.43,158.31,3.1569]
[1724499125109,19.42,158.4,158.31,3.1569]
[1724499125402,1.16043908,158.39,158.31,3.1569]
[1724499125605,3.1561,158.36,158.31,3.1569]
[1724499125808,19.42,158.4,158.3,3.1571]
[1724499126006,2.5835,158.43,158.33,0.04372645]
[1724499126007,0.04247148,158.37,158.33,0.04372645]
[1724499126196,19.42,158.35,158.25,19.42]
[1724499126402,0.04171786,158.32,158.28,0.04551271]
[1724499128807,3.1573,158.29,158.28,0.04551271]
[1724499132707,3.1572,158.3,158.28,0.04551271]
[1724499134211,0.04171786,158.32,158.28,0.04551271]
[1724499134510,0.04171786,158.32,158.29,19.42]
[1724499135415,0.04171786,158.32,158.29,22.5772]
[1724499135610,0.04171786,158.32,158.31,19.42]
[1724499136104,1.2303,158.39,158.31,22.577]
[1724499137113,3.156,158.36,158.33,0.0470373]
[1724499137309,0.04300528,158.37,158.33,0.0470373]
[1724499138417,3.1561,158.35,158.33,0.0470373]
[1724499139110,3.156,158.36,158.33,0.0470373]
[1724499139413,0.04300528,158.37,158.33,19.4670373]
[1724499140306,0.04300528,158.37,158.34,3.1563]
[1724499140507,0.04300528,158.37,158.35,19.42]
[1724499141508,0.04300528,158.37,158.33,22.6235373]
[1724499141721,0.04300528,158.37,158.33,19.4670373]
[1724499141938,0.04300528,158.37,158.33,0.0470373]
[1724499141939,3.1561,158.36,158.33,0.0470373]
[1724499142110,0.04300528,158.37,158.33,0.0470373]
[1724499142413,3.1564,158.35,158.33,0.0470373]
[1724499143716,0.04300528,158.37,158.33,19.4670373]
[1724499144308,3.156,158.36,158.33,19.4670373]
[1724499146912,3.1564,158.34,158.33,0.0470373]
[1724499147221,19.42,158.36,158.27,19.42]
[1724499147417,3.1574,158.3,158.27,19.42]
[1724499148115,20.6943,158.36,158.27,19.42]
[1724499148420,0.03985951,158.33,158.3,0.04664651]
[1724499148917,3.157,158.31,158.3,0.04664651]
[1724499151910,19.42,158.34,158.25,19.42]
[1724499151911,3.1579,158.27,158.25,19.42]
[1724499153519,3.20499505,158.28,158.25,19.42]
[1724499156421,3.1578,158.27,158.25,19.42]
[1724499158844,3.158,158.26,158.25,19.42]
[1724499159019,3.158,158.26,158.24,25.30218227]
[1724499163831,3.1582,158.25,158.24,25.30218227]
[1724499164018,0.04729505,158.28,158.24,25.30218227]
[1724499164219,0.04729505,158.28,158.24,0.04218227]
[1724499164825,22.55718115,158.28,158.24,0.04218227]
[1724499165029,19.46729505,158.28,158.24,0.04218227]
[1724499165425,3.1582,158.25,158.24,0.04218227]
[1724499167626,19.42,158.26,158.17,19.42]
[1724499168643,0.04034012,158.23,158.2,0.04054552]
[1724499169129,3.159,158.21,158.2,0.04054552]
[1724499182044,3.1602,158.15,158.1,19.42]
[1724499182259,19.42,158.2,158.08,70.54202809]
[1724499182545,22.64667009,158.2,158.12,3.1606]
[1724499183140,0.04717208,158.18,158.14,0.04419604]
[1724499183854,3.1602,158.16,158.14,0.04419604]
[1724499185347,3.1602,158.15,158.14,0.04419604]
[1724499190369,0.04717208,158.18,158.14,0.04419604]
[1724499190555,0.04717208,158.18,158.14,7.81419604]
[1724499191254,3.1599,158.17,158.14,10.97449604]
[1724499192149,0.04717208,158.18,158.14,0.04419604]
[1724499192549,0.04717208,158.18,158.17,7.77]
[1724499194364,3.20677208,158.18,158.15,3.1601]
[1724499194664,0.04717208,158.18,158.15,3.1601]
[1724499195468,3.1598,158.17,158.15,3.1601]
[1724499197572,3.1598,158.17,158.14,7.81419604]
[1724499197573,0.04717208,158.18,158.16,7.77]
[1724499198361,0.04717208,158.18,158.17,3.1598]
[1724499198563,0.04717208,158.18,158.16,7.77]
[1724499199169,0.04717208,158.18,158.16,3.1599]
[1724499199469,0.04717208,158.18,158.16,10.9299]
[1724499199760,3.20677208,158.18,158.16,7.77]
[1724499200180,3.20677208,158.18,158.15,10.9301]
[1724499200871,0.04717208,158.18,158.16,3.16]
[1724499201277,0.04717208,158.18,158.15,7.77]
[1724499201667,0.04717208,158.18,158.16,3.1599]
[1724499203770,0.04717208,158.18,158.14,0.04419604]
[1724499204265,3.1598,158.17,158.14,3.20449604]
[1724499205972,3.20687208,158.18,158.15,3.16]
[1724499209279,3.20687208,158.18,158.16,7.77]
[1724499210387,0.04717208,158.18,158.16,10.9299]
[1724499210579,0.04717208,158.18,158.16,7.77]
[1724499211079,0.04717208,158.18,158.17,3.1598]
[1724499211681,0.04717208,158.18,158.16,10.9299]
[1724499214484,0.04717208,158.18,158.16,3.1599]
[1724499219887,0.04717208,158.18,158.16,10.9299]
[1724499221591,3.20677208,158.18,158.16,10.9299]
[1724499222786,0.04717208,158.18,158.16,10.9299]
[1724499227391,0.04717208,158.18,158.17,3.1598]
[1724499229995,0.04717208,158.18,158.16,7.77]
[1724499230399,0.04717208,158.18,158.16,10.9299]
[1724499236599,0.04717208,158.18,158.17,3.05195614]
[1724499237996,0.04717208,158.18,158.14,0.04419604]
[1724499237997,0.04717208,158.18,158.15,10.9301]
[1724499238396,0.04717208,158.18,158.16,3.05219496]
[1724499238597,0.04717208,158.18,158.15,10.9301]
[1724499238798,0.04717208,158.18,158.16,3.05219376]
[1724499238993,0.04717208,158.18,158.15,10.9301]
[1724499239192,0.04717208,158.18,158.16,3.05221824]
[1724499239400,0.04717208,158.18,158.15,10.9301]
[1724499239602,0.04717208,158.18,158.16,3.05218995]
[1724499239800,0.04717208,158.18,158.15,10.9301]
[1724499240098,0.04717208,158.18,158.16,3.05218995]
[1724499240300,3.20677208,158.18,158.15,10.9301]
[1724499240504,3.20677208,158.18,158.16,3.05221824]
[1724499240696,3.20677208,158.18,158.15,3.1601]
[1724499240899,3.20677208,158.18,158.16,3.05221824]
[1724499241098,3.20677208,158.18,158.15,3.1601]
[1724499241298,3.20677208,158.18,158.16,3.0522541]
[1724499241498,3.20677208,158.18,158.15,3.1601]
[1724499241725,3.20677208,158.18,158.16,3.0522541]
[1724499241995,3.20677208,158.18,158.15,3.1601]
[1724499242201,3.20677208,158.18,158.16,3.05225822]
[1724499242402,3.20677208,158.18,158.15,3.1601]
[1724499242903,3.20677208,158.18,158.16,3.05225822]
[1724499243106,3.20677208,158.18,158.15,3.1601]
[1724499243293,3.20677208,158.18,158.16,3.05225822]
[1724499243492,3.20677208,158.18,158.15,3.1601]
[1724499243692,3.20677208,158.18,158.16,3.05225822]
[1724499243898,3.20677208,158.18,158.15,3.1601]
[1724499244197,3.20677208,158.18,158.16,3.05225822]
[1724499244395,3.20677208,158.18,158.15,3.1601]
[1724499244603,3.20677208,158.18,158.16,3.05246582]
[1724499244809,3.20677208,158.18,158.15,3.1601]
[1724499245005,3.20677208,158.18,158.16,3.0524658]
[1724499245197,3.20677208,158.18,158.15,3.1601]
[1724499245403,3.20677208,158.18,158.16,3.05245874]
[1724499245603,3.20677208,158.18,158.15,3.1601]
[1724499245805,3.20677208,158.18,158.16,3.05243369]
[1724499246008,3.20677208,158.18,158.15,3.1601]
[1724499246204,3.20677208,158.18,158.16,3.05243369]
[1724499246511,3.20677208,158.18,158.15,3.1601]
[1724499246710,3.20677208,158.18,158.16,3.05245876]
[1724499246908,3.20677208,158.18,158.15,3.1601]
[1724499247107,3.20677208,158.18,158.16,3.05245875]
[1724499247310,3.20677208,158.18,158.15,3.1601]
[1724499247509,3.20677208,158.18,158.16,3.05243369]
[1724499247811,3.20677208,158.18,158.15,3.1601]
[1724499248211,3.20677208,158.18,158.16,3.05243442]
[1724499248412,0.04717208,158.18,158.14,0.04419604]
[1724499248608,0.04717208,158.18,158.15,3.05246229]
[1724499248809,0.04717208,158.18,158.16,3.05246229]
[1724499249008,3.16,158.16,158.14,0.04419604]
[1724499249206,3.16,158.16,158.15,3.05262595]
[1724499251719,3.16,158.16,158.14,0.04419604]
[1724499251912,3.16,158.16,158.15,3.05259329]
[1724499255120,3.1598,158.17,158.15,3.05259329]
[1724499255415,3.1598,158.17,158.16,3.05259329]
[1724499257311,0.04717208,158.18,158.16,3.05259329]
[1724499257507,0.04717208,158.18,158.17,3.05259329]
[1724499257747,0.04717208,158.18,158.17,3.1598]
[1724499257909,0.04717208,158.18,158.17,6.21173388]
[1724499261214,0.04717208,158.18,158.17,3.1598]
[1724499261410,0.04717208,158.18,158.17,6.21162468]
[1724499262524,0.04717208,158.18,158.17,3.1598]
[1724499262720,0.04717208,158.18,158.17,6.2116587]
[1724499264625,0.04717208,158.18,158.17,3.1598]
[1724499264821,0.04717208,158.18,158.17,6.21134939]
[1724499266424,3.09809632,158.28,158.17,3.05154939]
[1724499266616,3.1584,158.24,158.19,7.77]
[1724499266814,10.86809632,158.28,158.22,3.1587]
[1724499267127,7.77,158.28,158.23,3.05154939]
[1724499267427,3.158,158.26,158.24,0.04221443]
[1724499268027,3.20336315,158.27,158.24,0.04221443]
[1724499268232,0.04556315,158.27,158.24,0.04221443]
[1724499269215,3.1581,158.26,158.24,0.04221443]
[1724499269823,3.1582,158.25,158.24,0.04221443]
[1724499280545,3.1594,158.19,158.15,3.8076]
[1724499280734,0.04556315,158.27,158.15,3.8076]
[1724499280735,7.77,158.21,158.16,3.05101481]
[1724499281031,7.77,158.21,158.17,3.05101481]
[1724499281260,7.77,158.22,158.16,7.77]
[1724499281425,7.77,158.24,158.17,7.77]
[1724499281626,0.04526312,158.22,158.19,0.04092561]
[1724499281831,0.04526312,158.22,158.21,10.9289]
[1724499282230,0.04526312,158.22,158.21,13.97951116]
[1724499284732,0.04526312,158.22,158.21,13.97908635]
[1724499286833,0.04526312,158.22,158.21,3.05018635]
[1724499287034,0.04526312,158.22,158.19,0.04092561]
[1724499287667,3.20406312,158.22,158.19,3.20022561]
[1724499287941,0.04526312,158.22,158.19,0.04092561]
[1724499289138,3.20416312,158.22,158.19,3.20022561]
[1724499292836,0.04526312,158.22,158.2,3.1591]
[1724499294538,3.20406312,158.22,158.19,10.97022561]
[1724499294739,0.04526312,158.22,158.19,7.81092561]
[1724499295144,3.20406312,158.22,158.19,10.97012561]
[1724499295342,3.20406312,158.22,158.19,3.20012561]
[1724499301150,3.1589,158.21,158.19,0.04092561]
[1724499305539,0.04526312,158.22,158.19,0.04092561]
[1724499305738,7.81526312,158.22,158.19,0.04092561]
[1724499306748,3.1591,158.2,158.19,0.04092561]
[1724499306948,7.77,158.19,158.12,7.77]
[1724499307146,7.77,158.19,158.13,3.05187298]
[1724499307346,3.1597,158.18,158.14,6.21217298]
[1724499307547,3.1597,158.18,158.15,3.05187298]
[1724499307849,3.20140784,158.18,158.15,3.09773003]
[1724499308043,3.20140784,158.18,158.15,0.04585705]
[1724499308246,3.20140784,158.18,158.16,3.05187355]
[1724499308444,3.20140784,158.18,158.15,3.20585705]
[1724499308754,3.20140784,158.18,158.16,3.05177154]
[1724499309055,3.20140784,158.18,158.15,3.20585705]
[1724499309447,3.20140784,158.18,158.16,3.05177037]
[1724499309646,3.20140784,158.18,158.15,3.20585705]
[1724499309847,3.20140784,158.18,158.16,3.05177038]
[1724499310042,3.20140784,158.18,158.15,3.20585705]
[1724499310244,3.20140784,158.18,158.16,3.05177359]
[1724499310447,3.20140784,158.18,158.15,3.20585705]
[1724499310655,3.20140784,158.18,158.16,3.05177418]
[1724499310855,3.20140784,158.18,158.15,3.20585705]
[1724499311060,3.20140784,158.18,158.16,3.05177097]
[1724499311261,3.20140784,158.18,158.15,10.97585705]
[1724499311460,3.20140784,158.18,158.16,3.05177096]
[1724499311662,3.20140784,158.18,158.15,10.97585705]
[1724499311856,3.20140784,158.18,158.16,3.05182108]
[1724499312162,0.04170784,158.18,158.17,7.77]
[1724499312763,0.04170784,158.18,158.17,10.82162734]
[1724499313363,0.04170784,158.18,158.17,13.98132734]
[1724499315565,0.04170784,158.18,158.17,13.98129587]
[1724499316163,0.04170784,158.18,158.17,10.9297]
[1724499316657,0.04170784,158.18,158.17,13.98131771]
[1724499316965,2.6096,158.31,158.17,41.90161771]
[1724499317167,2.6096,158.31,158.2,23.31]
[1724499317168,13.59531907,158.31,158.2,23.31]
[1724499317369,2.6096,158.31,158.21,3.05161771]
[1724499317560,10.3796,158.31,158.22,3.05161771]
[1724499317767,7.77,158.3,158.24,7.77]
[1724499318066,3.1577,158.28,158.25,0.0450188]
[1724499318565,0.04607158,158.29,158.25,0.0450188]
[1724499318871,3.1576,158.28,158.25,0.0450188]
[1724499319757,0.04607158,158.29,158.25,0.0450188]
[1724499320560,0.04607158,158.29,158.26,7.77]
[1724499321663,0.04607158,158.29,158.26,10.9279]
[1724499322265,0.04607158,158.29,158.25,0.0450188]
[1724499322972,0.04607158,158.29,158.28,7.77]
[1724499323177,3.2067239,158.36,158.28,7.77]
[1724499323365,7.77,158.37,158.31,7.77]
[1724499323569,7.77,158.36,158.28,7.77]
[1724499323773,7.77,158.34,158.28,7.77]
[1724499324068,7.77,158.32,158.29,0.04366112]
[1724499324269,7.77,158.32,158.25,7.77]
[1724499324469,0.04013681,158.3,158.29,0.04702542]
[1724499332766,0.04013681,158.3,158.29,3.20432542]
[1724499334176,66.0171875,158.38,158.29,0.04702542]
[1724499334375,73.7871875,158.38,158.32,7.77]
[1724499335166,0.04356484,158.37,158.33,0.04412817]
[1724499335498,3.19926484,158.37,158.33,3.20062817]
[1724499336976,7.77,158.35,158.33,0.04412817]
[1724499337480,10.9262,158.35,158.33,0.04412817]
[1724499338900,10.9263,158.34,158.33,0.04412817]
[1724499339773,3.1563,158.34,158.33,0.04412817]
[1724499339979,10.9263,158.34,158.33,0.04412817]
[1724499340479,3.1561,158.35,158.33,0.04412817]
[1724499342412,0.04356484,158.37,158.36,3.1559]
[1724499342679,7.77,158.44,158.36,7.77]
[1724499342891,3.1548,158.42,158.38,7.77]
[1724499343468,7.77,158.44,158.38,7.77]
[1724499343682,0.04740779,158.42,158.38,7.81166273]
[1724499344185,0.04740779,158.42,158.38,0.04166273]
[1724499344882,3.155,158.41,158.38,0.04166273]
[1724499345271,0.04740779,158.42,158.18,226.0]
[1724499345477,3.09776216,158.42,158.24,10.3885]
[1724499345698,7.77,158.33,158.24,2.6185]
[1724499345880,7.77,158.33,158.26,7.77]
[1724499346278,0.04555479,158.31,158.28,0.04010795]
[1724499347379,0.04555479,158.31,158.28,3.19750795]
[1724499348681,0.04555479,158.31,158.28,0.04010795]
[1724499349181,3.1571,158.3,158.28,0.04010795]
[1724499351288,3.1573,158.29,158.28,0.04010795]
[1724499368799,3.1581,158.25,158.22,3.1586]
[1724499369906,3.20124286,158.25,158.22,3.20083908]
[1724499370206,3.1585,158.23,158.22,0.04223908]
[1724499376699,10.9185,158.23,158.22,0.04223908]
[1724499379205,7.76,158.23,158.14,33.0]
[1724499379410,7.76,158.21,158.14,33.0]
[1724499380308,7.76,158.21,158.16,0.04509256]
[1724499380309,3.20778496,158.19,158.16,0.04509256]
[1724499382408,3.20778496,158.19,158.16,10.96479256]
[1724499386413,0.04828496,158.19,158.17,3.1596]
[1724499387906,0.04828496,158.19,158.16,7.80509256]
[1724499387907,3.20758496,158.19,158.16,10.96489256]
[1724499388439,3.20758496,158.19,158.16,7.80509256]
[1724499389402,3.20758496,158.19,158.17,3.1597]
[1724499390607,0.04828496,158.19,158.17,3.1597]
[1724499391009,0.04828496,158.19,158.17,10.9197]
[1724499392308,0.04828496,158.19,158.18,10.9195]
[1724499392706,0.04828496,158.19,158.18,3.1595]
[1724499401215,3.1585,158.24,158.2,3.159]
[1724499401514,3.1585,158.24,158.2,10.919]
[1724499402110,3.1585,158.23,158.2,10.96056812]